lending/lending_fUSD_20250409
["ID","MTS","AMOUNT","RATE_DAILY","PERIOD"]
[357562902,1744157345147,-250.0,0.00019,2]
[357562903,1744157345169,-500.0,0.00019,2]
[357562904,1744157352221,-300.0,0.00021,2]
[357562905,1744157369097,-350.0,0.00023,2]
[357562906,1744157369118,-400.0,0.00025,2]
[357562907,1744157369137,-250.0,0.00025397,2]
[357562908,1744157369158,-3440.674686,0.0002646,2]
[357562911,1744157431694,-277.885,0.00025931,2]
[357562912,1744157431704,-102.495,0.0002646,2]
[357562913,1744157431715,-533.75,0.0002646,2]
[357562914,1744157431792,-686.70732229,0.0002646,2]
[357562915,1744157431802,-181.2,0.00026849,2]
[357562916,1744157431811,-575.58372846,0.000269,2]
[357562917,1744157431821,-450.0,0.00027,2]
[357562918,1744157431830,-575.58372845,0.00028103,2]
[357562919,1744157431839,-332.07,0.00028203,2]
[357562920,1744157431849,-250.8470208,0.00028203,2]
[357562923,1744157432075,-749.1429792,0.00028203,2]
[357562924,1744157432084,-150.99,0.00028203,2]
[357562925,1744157432095,-150.99,0.00028203,2]
[357562926,1744157432105,-189.52,0.00028203,2]
[357562927,1744157432114,-746.26,0.00028203,2]
[357562928,1744157432124,-1123.53,0.00028203,2]
[357562929,1744157432134,-5424.6,0.00028203,2]
[357562930,1744157432144,-9524.2,0.00028203,2]
[357562931,1744157432153,-500.0,0.00029,2]
[357562932,1744157432163,-550.0,0.00031,2]
[357562933,1744157432173,-181.2,0.00032646,2]
[357562934,1744157432183,-600.0,0.00033,2]
[357562935,1744157432192,-170.4,0.00034258,2]
[357562936,1744157432201,-500.0,0.00034986,2]
[357562937,1744157432211,-650.0,0.00035,2]
[357562938,1744157432220,-159.29,0.00035,2]
[357562939,1744157432229,-214.06333434,0.00035342,2]
[357562940,1744157432239,-396.106,0.00035696,42]
[357562941,1744157432248,-150.0,0.00035999,2]
[357562942,1744157432257,-696.40768646,0.00037,2]
[357562943,1744157432269,-3.59231354,0.00037,2]
[357562944,1744157432281,-150.0,0.00037369,2]
[357562945,1744157432291,-181.2,0.00038443,2]
[357562946,1744157432300,-4.65745119,0.00038739,2]
[357562947,1744157432312,-145.34254881,0.00038739,2]
[357562948,1744157432321,-750.0,0.00039,2]
[357562949,1744157432331,-621.52,0.00039452,2]
[357562950,1744157432340,-10900.0,0.0004,3]
[357562951,1744157432350,-150.0,0.00040109,2]
[357562952,1744157432359,-282.34744421,0.00040727,2]
[357562953,1744157432369,-157.97,0.00041182,2]
[357562954,1744157432384,-439.77,0.00041233,2]
[357562955,1744157432395,-1359.7,0.00041248,2]
[357562956,1744157432405,-652.81,0.00041248,2]
[357562957,1744157432415,-230.97,0.00041377,2]
[357562958,1744157432426,-497.74,0.00041389,2]
[357562959,1744157432436,-23900.0,0.00041391,2]
[357562960,1744157432445,-150.0,0.00041479,120]
[357562961,1744157432455,-200.0,0.00041513,7]
[357562962,1744157432464,-500.0,0.00041527,2]
[357562963,1744157432473,-151.43,0.00041631,2]
[357562964,1744157432483,-215.73,0.00041658,2]
[357562965,1744157432493,-1852.42,0.00041668,2]
[357562966,1744157432503,-250.0,0.00041676,120]
[357562967,1744157432513,-621.52,0.00041715,2]
[357562968,1744157432525,-35276.87009195,0.00041767,2]
[357562969,1744157432537,-1856.94990805,0.00041767,2]
[357562970,1744157432547,-1102.17,0.00041816,2]
[357562971,1744157432556,-150.0,0.00041945,2]
[357562972,1744157432567,-250.0,0.0004195,2]
[357562973,1744157432577,-203.06,0.00041976,2]
[357562974,1744157432587,-256.12009195,0.00041979,2]
[357562975,1744157432610,-5.78990805,0.00041979,2]
[357562976,1744157432621,-530.53,0.00041988,2]
[357562977,1744157432630,-392.77298209,0.00042,7]
[357562985,1744157438033,-107.22701791,0.00042,7]
[357562986,1744157438043,-200.0,0.00042068,2]
[357562987,1744157438053,-250.0,0.0004207,2]
[357562988,1744157438063,-184.47,0.00042573,2]
[357562989,1744157438072,-250.0,0.00042681,2]
[357562990,1744157438082,-150.0,0.00042849,120]
[357562991,1744157438091,-500.0,0.00043,7]
[357562992,1744157438103,-500.0,0.00043,10]
[357562993,1744157438114,-500.0,0.00043,14]
[357562994,1744157438126,-165.28,0.0004329,120]
[357562995,1744157438139,-653.72096386,0.00043311,2]
[357562996,1744157438154,-705.97903614,0.00043311,2]
[357562997,1744157438166,-225.0,0.00043389,2]
[357562998,1744157438180,-389.42,0.00043468,2]
[357562999,1744157438192,-664.0,0.00043528,30]
[357563000,1744157438203,-418.42120491,0.00043528,15]
[357563001,1744157438214,-230.97,0.00043676,2]
[357563002,1744157438226,-621.52,0.00043979,2]
[357563003,1744157438238,-1189.98,0.00044084,2]
[357563004,1744157438249,-166.66,0.00044107,2]
[357563005,1744157438259,-157.97,0.00044168,2]
[357563007,1744157438270,-152.22,0.000442,36]
[357563008,1744157438286,-152.22,0.000442,36]
[357563010,1744157438298,-152.22,0.000442,36]
[357563011,1744157438309,-152.22,0.000442,36]
[357563013,1744157438321,-152.22,0.000442,36]
[357563014,1744157438333,-152.22,0.000442,36]
[357563016,1744157438344,-152.22,0.000442,36]
[357563017,1744157438358,-150.0,0.00044218,120]
[357563018,1744157438372,-181.2,0.00044239,2]
[357563019,1744157438387,-225.0,0.00044758,2]
[357563020,1744157438398,-150.0,0.000449,2]
[357563021,1744157438409,-300.0,0.00045006,2]
[357563022,1744157438419,-200.0,0.0004513,2]
[357563023,1744157438433,-355.62494099,0.000452,2]
[357563024,1744157438445,-1359.7,0.00045373,2]
[357563025,1744157438456,-150.0,0.00045588,120]
[357563026,1744157438469,-166.66,0.00045927,2]
[357563027,1744157438481,-230.97,0.00045974,2]
[357563028,1744157438493,-1132.0,0.00046,2]
[357563029,1744157438505,-250.0,0.0004609,2]
[357563030,1744157438516,-621.52,0.00046243,2]
[357563031,1744157438527,-150.0,0.00046958,120]
[357563032,1744157438543,-157.97,0.00047153,2]
[357563033,1744157438554,-160.27,0.00047277,2]
[357563035,1744157438567,-1359.7,0.00047435,2]
[357563036,1744157438578,-155.12,0.00047559,120]
[357563037,1744157438590,-150.0,0.00047637,120]
[357563038,1744157438601,-1000.0,0.00047699,2]
[357563039,1744157438613,-7240.0,0.00047736,2]
[357563040,1744157438625,-5555.80124533,0.00047737,15]
[357563042,1744157438638,-174.42526455,0.00047737,28]
[357563044,1744157438650,-1307.55865846,0.00047737,15]
[357563046,1744157438662,-2500.0,0.00047737,2]
[357563049,1744157438673,-1766.52263644,0.00047746,19]
[357563051,1744157438685,-1000.0,0.00047747,2]
[357563053,1744157438697,-5000.0,0.00047747,120]
[357563055,1744157438708,-166.66,0.00047747,2]
[357563057,1744157438719,-1791.84,0.00047827,2]
[357563059,1744157438730,-984.38101318,0.00047827,2]
[357563060,1744157438771,-807.45898682,0.00047827,2]
[357563061,1744157438787,-1791.84,0.00047827,2]
[357563062,1744157438798,-1188.56515108,0.00047827,2]
[357563064,1744157440540,-603.27484892,0.00047827,2]
[357563065,1744157440551,-836.65877356,0.00047827,2]
[357563066,1744157440565,-313.43137728,0.00047827,2]
[357563067,1744157440608,-641.74984916,0.00047827,2]
[357563068,1744157440626,-1791.84,0.00047827,2]
[357563069,1744157440640,-1791.84,0.00047827,2]
[357563070,1744157440651,-1791.84,0.00047827,2]
[357563071,1744157440661,-1791.84,0.00047827,2]
[357563072,1744157440672,-1791.84,0.00047827,2]
[357563073,1744157440683,-184.59336116,0.00047836,120]
[357563074,1744157440694,-232.7538462,0.00047836,15]
[357563075,1744157440705,-514.13220296,0.00047836,120]
[357563076,1744157440716,-195.58643082,0.00047836,120]
[357563077,1744157440728,-514.13220296,0.00047836,120]
[357563078,1744157440739,-514.13220296,0.00047836,120]
[357563079,1744157440749,-514.13220296,0.00047836,120]
[357563080,1744157440761,-514.13220296,0.00047836,120]
[357563081,1744157440771,-514.13220296,0.00047836,120]
[357563082,1744157440784,-514.13220296,0.00047836,120]
[357563083,1744157440796,-514.13220296,0.00047836,120]
[357563084,1744157440807,-514.13220296,0.00047836,120]
[357563085,1744157440818,-514.13220296,0.00047836,120]
[357563086,1744157440829,-514.13220296,0.00047836,120]
[357563087,1744157440839,-514.13220296,0.00047836,120]
[357563088,1744157440850,-514.13220296,0.00047836,120]
[357563089,1744157440861,-514.13220296,0.00047836,120]
[357563090,1744157440871,-514.13220296,0.00047836,120]
[357563091,1744157440882,-514.13220296,0.00047836,120]
[357563092,1744157440892,-514.13220296,0.00047836,120]
[357563093,1744157440902,-77.61906234,0.00047836,120]
[357563100,1744157445731,-1000.0,0.00046883,120]
[357563103,1744157445742,-365.05564256,0.00047836,120]
[357563106,1744157445825,-71.45749806,0.00047836,120]
[357563108,1744157445836,-514.13220296,0.00047836,120]
[357563110,1744157445846,-148.02232006,0.00047836,120]
[357563114,1744157445859,-366.1098829,0.00047836,120]
[357563116,1744157445870,-10.21536836,0.00047836,120]
[357563118,1744157445907,-503.9168346,0.00047836,120]
[357563119,1744157445919,-256.0831654,0.00047836,120]
[357563120,1744157445983,-322.31556294,0.00047836,120]
[357563121,1744157445993,-578.39872834,0.00047836,120]
[357563122,1744157446005,-578.39872834,0.00047836,120]
[357563123,1744157446015,-578.39872834,0.00047836,120]
[357563124,1744157446025,-213.0,0.00047837,2]
[357563125,1744157446035,-5359.71825204,0.00047837,4]
[357563138,1744157447431,-806.30783701,0.00047837,4]
[357563139,1744157447443,-2346.37994327,0.00047837,4]
[357563140,1744157447458,-1297.55598564,0.00047837,4]
[357563141,1744157447470,-114241.32,0.00047837,4]
[357563142,1744157447525,-439.21007754,0.00047837,4]
[357563143,1744157447538,-1627.05487211,0.00047837,4]
[357563144,1744157447554,-51886.17600002,0.00047837,4]
[357563150,1744158308437,-250.0,0.00019,2]
[357563151,1744158310099,-3519.03741311,0.0002,2]
[357563152,1744158317849,-315.14881894,0.0002,2]
[357563154,1744158320752,4572.64984625,9e-05,2]
[357563155,1744158326803,990.38728844,0.000108,2]
[357563156,1744158329116,2787.62859961,0.00011,2]
[357563157,1744158330938,-167.51768369,0.000391,14]
[357563159,1744158337856,1649.3342657,8e-05,2]
[357563160,1744158337883,4039.80435033,8e-05,2]
[357563162,1744158350267,-164.16733001,0.000199,2]
[357563163,1744158355992,-150.98148899,0.000199,2]
[357563164,1744158356020,-36.80030124,0.000199,2]
[357563165,1744158356682,1291.29858304,6.94e-05,2]
[357563166,1744158361926,-127.36702877,0.000199,2]
[357563167,1744158361949,-172.63297123,0.0001999,2]
[357563168,1744158362996,-770.4356637,0.0001999,2]
[357563169,1744158368472,1768.00518634,8e-05,2]
[357563170,1744158389249,-300.0,0.00019999,2]
[357563171,1744158389276,-131.4735363,0.0002,2]
[357563172,1744158390920,1971.13537071,0.00015,2]
[357563173,1744158418755,931.85106403,0.00015,14]
[357563174,1744158425110,-1501.9092,0.000198,2]
[357563175,1744158425131,-8578.89900579,0.000199,2]
[357563176,1744158425152,-1243.32528113,0.000199,2]
[357563177,1744158425175,-5455.18504149,0.0002,2]
[357563178,1744158431608,929.75650958,0.00015,2]
[357563179,1744158431629,2450.0772856,0.00015,2]
[357563180,1744158433121,-218.74417505,0.000153,2]
[357563181,1744158433145,-447.77399454,0.0002,2]
[357563182,1744158449457,158.63622187,0.0001,2]
[357563185,1744158478312,7391.28649253,0.0001,2]
[357563186,1744158478332,6531.18298708,0.0001,2]
[357563187,1744158482334,3468.81701292,0.00015,2]
[357563188,1744158482357,10000.0,0.00015,2]
[357563189,1744158482378,10000.0,0.00015,2]
[357563190,1744158482400,10000.0,0.00015,2]
[357563191,1744158482422,10000.0,0.00015,2]
[357563192,1744158482443,10000.0,0.00015,2]
[357563193,1744158482464,10000.0,0.00015,2]
[357563194,1744158482487,10000.0,0.00015,2]
[357563195,1744158482509,10000.0,0.00015,2]
[357563196,1744158482530,10000.0,0.00015,2]
[357563197,1744158482551,10000.0,0.00015,2]
[357563198,1744158482573,10000.0,0.00015,2]
[357563199,1744158482595,10000.0,0.00015,2]
[357563200,1744158482617,10000.0,0.00015,2]
[357563201,1744158482638,10000.0,0.00015,2]
[357563202,1744158482660,10000.0,0.00015,2]
[357563203,1744158482683,10000.0,0.00015,2]
[357563204,1744158482708,10000.0,0.00015,2]
[357563205,1744158482730,10000.0,0.00015,2]
[357563206,1744158482754,10000.0,0.00015,2]
[357563207,1744158482777,10000.0,0.00015,2]
[357563208,1744158482800,10000.0,0.00015,2]
[357563209,1744158482822,10000.0,0.00015,2]
[357563210,1744158482844,10000.0,0.00015,2]
[357563211,1744158482866,10000.0,0.00015,2]
[357563212,1744158482888,10000.0,0.00015,2]
[357563213,1744158482910,10000.0,0.00015,2]
[357563214,1744158482932,10000.0,0.00015,2]
[357563215,1744158482953,10000.0,0.00015,2]
[357563216,1744158482975,10000.0,0.00015,2]
[357563217,1744158483005,10000.0,0.00015,2]
[357563218,1744158483028,10000.0,0.00015,2]
[357563219,1744158483053,10000.0,0.00015,2]
[357563220,1744158483079,10000.0,0.00015,2]
[357563221,1744158483104,10000.0,0.00015,2]
[357563222,1744158483129,10000.0,0.00015,2]
[357563223,1744158483153,10000.0,0.00015,2]
[357563224,1744158483179,10000.0,0.00015,2]
[357563225,1744158483203,10000.0,0.00015,2]
[357563226,1744158483228,10000.0,0.00015,2]
[357563227,1744158483256,10000.0,0.00015,2]
[357563228,1744158483279,10000.0,0.00015,2]
[357563229,1744158483302,10000.0,0.00015,2]
[357563230,1744158483326,10000.0,0.00015,2]
[357563231,1744158483349,10000.0,0.00015,2]
[357563232,1744158483372,10000.0,0.00015,2]
[357563233,1744158483396,10000.0,0.00015,2]
[357563234,1744158483418,10000.0,0.00015,2]
[357563235,1744158483440,10000.0,0.00015,2]
[357563236,1744158483463,10000.0,0.00015,2]
[357563237,1744158483486,10000.0,0.00015,2]
[357563238,1744158483511,10000.0,0.00015,2]
[357563239,1744158483533,10000.0,0.00015,2]
[357563240,1744158483557,10000.0,0.00015,2]
[357563241,1744158483581,10000.0,0.00015,2]
[357563242,1744158483620,10000.0,0.00015,2]
[357563243,1744158483650,10000.0,0.00015,2]
[357563244,1744158483674,10000.0,0.00015,2]
[357563245,1744158483701,10000.0,0.00015,2]
[357563246,1744158483728,10000.0,0.00015,2]
[357563247,1744158483754,10000.0,0.00015,2]
[357563248,1744158483781,10000.0,0.00015,2]
[357563249,1744158483805,10000.0,0.00015,2]
[357563250,1744158483833,10000.0,0.00015,2]
[357563251,1744158483858,10000.0,0.00015,2]
[357563252,1744158483883,10000.0,0.00015,2]
[357563253,1744158483908,10000.0,0.00015,2]
[357563254,1744158483932,10000.0,0.00015,2]
[357563255,1744158483955,10000.0,0.00015,2]
[357563256,1744158483979,10000.0,0.00015,2]
[357563257,1744158484005,10000.0,0.00015,2]
[357563258,1744158484029,10000.0,0.00015,2]
[357563259,1744158484053,10000.0,0.00015,2]
[357563260,1744158484076,10000.0,0.00015,2]
[357563261,1744158484100,10000.0,0.00015,2]
[357563262,1744158484123,10000.0,0.00015,2]
[357563263,1744158484146,10000.0,0.00015,2]
[357563264,1744158484171,10000.0,0.00015,2]
[357563265,1744158484200,10000.0,0.00015,2]
[357563266,1744158484224,10000.0,0.00015,2]
[357563267,1744158484251,10000.0,0.00015,2]
[357563268,1744158484276,10000.0,0.00015,2]
[357563269,1744158484301,10000.0,0.00015,2]
[357563270,1744158484325,10000.0,0.00015,2]
[357563271,1744158484350,10000.0,0.00015,2]
[357563272,1744158484375,10000.0,0.00015,2]
[357563273,1744158484400,10000.0,0.00015,2]
[357563274,1744158484424,10000.0,0.00015,2]
[357563275,1744158484448,10000.0,0.00015,2]
[357563276,1744158484472,10000.0,0.00015,2]
[357563277,1744158484499,10000.0,0.00015,2]
[357563278,1744158484522,10000.0,0.00015,2]
[357563279,1744158484547,10000.0,0.00015,2]
[357563280,1744158484571,10000.0,0.00015,2]
[357563281,1744158484594,10000.0,0.00015,2]
[357563282,1744158484624,283771.8006,0.00015,2]
[357563283,1744158484652,50000.0,0.00015,2]
[357563284,1744158484803,50000.0,0.00015,2]
[357563285,1744158484831,50000.0,0.00015,2]
[357563286,1744158484860,50000.0,0.00015,2]
[357563287,1744158484889,50000.0,0.00015,2]
[357563288,1744158484919,37446.25649638,0.00015,2]
[357563290,1744158523039,258.51443658,0.000107,2]
[357563292,1744158527182,1213.88601544,0.00010136,2]
[357563298,1744158565090,-167.328432,0.000189,2]
[357563299,1744158565114,-300.0,0.00019899,2]
[357563300,1744158565136,-174.42526454,0.000199,2]
[357563301,1744158565157,-5719.26600386,0.000199,2]
[357563302,1744158565178,-162.92769234,0.00019999,2]
[357563303,1744158565202,-91433.15800726,0.0002,2]
[357563304,1744158566070,-6739.512038,0.0002,2]
[357563306,1744158612519,1000.0,0.00043535,30]
[357563307,1744158617346,150.0,0.00043535,30]
[357563330,1744158631815,-587.68822419,0.000199,2]
[357563332,1744158631825,-159.36284128,0.0001999,2]
[357563334,1744158632004,-117.22148624,0.0001999,2]
[357563335,1744158632014,-23269.27405774,0.0002,2]
[357563365,1744158640145,-0.01725451,0.0002,2]
[357563366,1744158640166,-2744565.63414703,0.0002,2]
[357563367,1744158640468,-5412.9048235,0.0002,2]
[357563368,1744158640481,-301.89262365,0.0002,2]
[357563369,1744158640494,-774.60505278,0.0002,2]
[357563373,1744158641280,-2725.71986506,0.0002,2]
[357563431,1744158644464,-150.97467026,0.0002,2]
[357563435,1744158645861,-2567.75138484,0.0002,2]
[357563436,1744158646217,-1107.8144064,0.0002,2]
[357563437,1744158646232,-512.2708705,0.0002,2]
[357563442,1744158853810,-5128.84532723,0.000199,2]
[357563443,1744158853835,-176.21350078,0.000199,2]
[357563444,1744158853859,-250.0,0.0001995,2]
[357563445,1744158853881,-185.94117199,0.00019999,2]
[357563446,1744158922068,-1118.99275299,0.000199,2]
[357563447,1744158922090,-4622.00724701,0.00019999,2]
[357563448,1744158967739,2683.966412,7.945e-05,2]
[357563449,1744159008870,-150.0,0.0002,7]
[357563450,1744159194494,165.28,0.00026477,120]
[357563451,1744159644149,-157.22485301,0.000199,2]
[357563452,1744159644171,-1007.0934777,0.000199,2]
[357563453,1744159644194,-160.0,0.0001999,2]
[357563454,1744159644215,-160.0,0.0001999,2]
[357563455,1744159644236,-160.0,0.0001999,2]
[357563456,1744159644257,-160.0,0.0001999,2]
[357563457,1744159644277,-160.0,0.0001999,2]
[357563458,1744159644296,-160.0,0.0001999,2]
[357563459,1744159644319,-160.0,0.0001999,2]
[357563460,1744159644339,-160.0,0.0001999,2]
[357563461,1744159644359,-160.0,0.0001999,2]
[357563462,1744159644380,-12371.98094015,0.00019999,2]
[357563463,1744159730791,606.47,0.00015,2]
[357563464,1744159750115,-1595.543292,0.00019998,2]
[357563465,1744159765077,-5847.10385,0.00019998,2]
[357563467,1744159832092,-1189.27015556,0.000199,2]
[357563468,1744159832103,-3813.23483449,0.000199,2]
[357563469,1744159832112,-2380.6268059,0.00019998,2]
[357563470,1744159832122,-7773.67721792,0.00019999,2]
[357563471,1744159832150,-706.91549991,0.00019999,2]
[357563494,1744159838038,-41966.25394587,0.00019999,2]
[357563495,1744159838050,-28693.031581,0.00019999,2]
[357563496,1744159838061,-429340.71441053,0.0002,2]
[357563497,1744159838204,-899.0000001,0.0002,2]
[357563498,1744159838311,-305.93319112,0.0002,2]
[357563499,1744159838367,-126204.90973164,0.0002,2]
[357563500,1744159840111,-1682.55519211,0.0002,2]
[357563501,1744159840186,-862.52444364,0.0002,2]
[357563502,1744159840215,-0.00450973,0.0002,2]
[357563503,1744159841448,-339.39999997,0.0002,2]
[357563514,1744159843951,-3074.05367742,0.0002,2]
[357563515,1744159843963,-4301.7396,0.0002,2]
[357563518,1744159846041,-3187.5,0.0002,2]
[357563519,1744159846261,-5227.52927536,0.0002,2]
[357563520,1744159846555,-272.6057566,0.0002,2]
[357563521,1744159846567,-5042.77999924,0.0002,2]
[357563522,1744159846579,-1246.06510001,0.0002,2]
[357563523,1744159846590,-830.1295,0.0002,2]
[357563524,1744159846602,-1221.88768,0.0002,2]
[357563525,1744159846613,-824.4932982,0.0002,2]
[357563526,1744159846624,-567.76829984,0.0002,2]
[357563527,1744159846635,-4975.0,0.0002,2]
[357563528,1744159846659,-172855.04917026,0.0002,2]
[357563529,1744159846815,-7186.43977357,0.0002,2]
[357563530,1744159846831,-617.71750258,0.0002,2]
[357563531,1744159846843,-594.47942574,0.0002,2]
[357563532,1744159846854,-1078.76881728,0.0002,2]
[357563534,1744160345114,19496.0,0.00043508,30]
[357563537,1744160834102,-250.0,0.00019,2]
[357563538,1744160834124,-316.885,0.000196,2]
[357563539,1744160834145,-176.21350077,0.000199,2]
[357563540,1744160834166,-157.22485295,0.000199,2]
[357563541,1744160834186,-602.020433,0.000199,2]
[357563542,1744160834208,-6811.54555578,0.0002,2]
[357563543,1744160847131,-553.20836487,0.0002,2]
[357563544,1744160955105,-157.71903592,0.000199,2]
[357563545,1744160955126,-4282.94752521,0.000199,2]
[357563557,1744161032164,-243.63300728,0.000199,2]
[357563558,1744161032174,-938.35658571,0.000199,2]
[357563559,1744161032184,-387.1057,0.000199,2]
[357563560,1744161032194,-179.8187,0.000199,2]
[357563561,1744161032204,-2045.48600701,0.0002,2]
[357563562,1744161032234,-5012.71620559,0.0002,2]
[357563563,1744161032358,-2120.34484244,0.0002,2]
[357563564,1744161032369,-7591.2,0.0002,2]
[357563565,1744161032380,-320.60425082,0.0002,2]
[357563566,1744161032420,-349.89359971,0.0002,2]
[357563591,1744161038413,-1765.00000325,0.0002,2]
[357563592,1744161038425,-348.22827378,0.0002,2]
[357563596,1744161038994,-4619.96378443,0.0002,2]
[357563597,1744161039006,-1269.93761567,0.0002,2]
[357563598,1744161039028,-608592.46151522,0.0002,2]
[357563601,1744161040333,-34714.4999973,0.0002,2]
[357563602,1744161040390,-8.673e-05,0.0002,2]
[357563603,1744161040402,-50732.7791015,0.0002,2]
[357563604,1744161040413,-6121.90675735,0.0002,2]
[357563605,1744161040467,-1902.26802886,0.0002,2]
[357563606,1744161040530,-383.17,0.0002,2]
[357563607,1744161040756,-320.6506307,0.0002,2]
[357563621,1744161043313,-258.87047772,0.0002,2]
[357563622,1744161043426,-738.89603578,0.0002,2]
[357563623,1744161043484,-7800.0,0.0002,2]
[357563624,1744161043654,-341.93158957,0.0002,2]
[357563625,1744161044185,-305.08350226,0.0002,2]
[357563633,1744161046324,-1251.18619627,0.0002,2]
[357563634,1744161046336,-250.95374993,0.0002,2]
[357563635,1744161046347,-403.21409092,0.0002,2]
[357563636,1744161046359,-259.20999954,0.0002,2]
[357563637,1744161046455,-1223.76548299,0.0002,2]
[357563638,1744161046475,-873.04735892,0.0002,2]
[357563639,1744161046503,-5005.159989,0.0002,2]
[357563640,1744161046515,-4997.00000416,0.0002,2]
[357563641,1744161046526,-2189.37933535,0.0002,2]
[357563642,1744161046548,-2488.60682278,0.0002,2]
[357563643,1744161046590,-62.97444071,0.0002,2]
[357563645,1744161409116,165.28,0.00027402,120]
[357563648,1744161920577,3725.4364474,9e-05,2]
[357563649,1744161920602,847.21339885,9e-05,2]
[357563650,1744161926807,990.38728844,0.000108,2]
[357563651,1744161929134,1887.83576011,0.00011,2]
[357563652,1744161929158,899.7928395,0.00011,2]
[357563653,1744161937779,1649.3342657,8e-05,2]
[357563655,1744162012192,-250.0,0.00019,2]
[357563656,1744162012214,-129.0,0.00019,2]
[357563657,1744162031488,1176.3093422,0.00015,2]
[357563658,1744162031512,2553.86503238,0.00015,2]
[357563659,1744162035091,1171.57141502,0.00015,2]
[357563660,1744162035113,3725.4364474,0.00015,2]
[357563661,1744162035135,3725.4364474,0.00015,2]
[357563662,1744162035157,3725.4364474,0.00015,2]
[357563663,1744162035179,3725.4364474,0.00015,2]
[357563664,1744162035202,359.59584111,0.00015,2]
[357563666,1744162078789,1415.0534057,0.0001,2]
[357563667,1744162080869,1101.55120342,0.000181,2]
[357563668,1744162082740,849.23599717,0.00015,2]
[357563669,1744162082765,3725.4364474,0.00015,2]
[357563670,1744162082804,7790.9066396,0.00015,2]
[357563671,1744162082834,50000.0,0.00015,2]
[357563672,1744162082864,50000.0,0.00015,2]
[357563673,1744162082898,50000.0,0.00015,2]
[357563674,1744162082926,50000.0,0.00015,2]
[357563675,1744162119068,-1205.00620554,0.000149,2]
[357563676,1744162127240,-167.51768369,0.000149,2]
[357563679,1744162145155,-1353.19597583,0.000149,2]
[357563680,1744162145178,-57512.64630417,0.00015,2]
[357563681,1744162145906,-315.14881894,0.00015,2]
[357563683,1744162151095,-95894.43178,0.00015,2]
[357563684,1744162151946,-3237.00416082,0.00015,2]
[357563685,1744162154103,-47642.90482,0.00015,2]
[357563686,1744162154663,-3519.03741311,0.00015,2]
[357563693,1744162165115,-114623.4264,0.00015,2]
[357563694,1744162165765,-770.4356637,0.00015,2]
[357563695,1744162170152,-8122.738722,0.00015,2]
[357563697,1744162201471,-8490.92711929,0.00015,2]
[357563698,1744162201519,-8490.92711929,0.00015,2]
[357563699,1744162201561,-8490.92711929,0.00015,2]
[357563700,1744162201604,-8490.92711929,0.00015,2]
[357563701,1744162201656,-8490.92711929,0.00015,2]
[357563702,1744162201709,-300.0,0.00014999,2]
[357563703,1744162201743,-8190.92711929,0.00015,2]
[357563704,1744162201786,-8490.92711929,0.00015,2]
[357563705,1744162201825,-8490.92711929,0.00015,2]
[357563706,1744162201867,-6893.35519623,0.00015,2]
[357563707,1744162201943,-8490.92711929,0.00015,2]
[357563708,1744162201991,-8490.92711929,0.00015,2]